bitfinex-derivatives/quotes_SOLF0:USTF0_20240910
["timestamp","ask_amount","ask_price","bid_price","bid_amount"]
[1725945222462,3.3759,133.29,133.28,1.2952]
[1725945223366,3.3757,133.3,133.28,1.2952]
[1725945229678,22.54,133.32,133.28,10.5552]
[1725945229866,22.54,133.33,133.28,10.5552]
[1725945230069,3.3753,133.32,133.29,3.3758]
[1725945232273,3.3753,133.32,133.3,3.3756]
[1725945232986,3.3753,133.32,133.29,3.3758]
[1725945235980,3.3753,133.32,133.28,6.0684]
[1725945235981,9.26,133.32,133.28,6.0684]
[1725945237178,3.3757,133.3,133.28,6.0684]
[1725945237784,3.3755,133.31,133.28,6.0684]
[1725945244493,3.3752,133.32,133.3,3.3756]
[1725945244888,3.3752,133.32,133.29,9.26]
[1725945245991,22.54,133.37,133.31,3.3753]
[1725945246191,1.14024056,133.36,133.31,3.3753]
[1725945246787,4.81124408,133.36,133.31,3.3753]
[1725945246995,3.3742,133.36,133.33,9.26]
[1725945247587,3.3742,133.36,133.33,12.6347]
[1725945250292,3.3739,133.37,133.34,3.3745]
[1725945250496,3.3739,133.37,133.33,9.26]
[1725945251097,3.3739,133.37,133.33,12.6348]
[1725945252197,22.54,133.37,133.32,12.635]
[1725945252401,22.54,133.37,133.32,9.26]
[1725945253201,3.3747,133.34,133.32,9.26]
[1725945254807,3.3745,133.35,133.32,9.26]
[1725945255005,3.3745,133.35,133.32,12.6351]
[1725945255305,35.50910864,133.38,133.33,9.26]
[1725945255501,3.3742,133.36,133.33,12.6347]
[1725945256200,3.374,133.37,133.34,3.3746]
[1725945256398,3.374,133.37,133.34,12.6346]
[1725945257000,25.9137,133.38,133.35,3.3743]
[1725945257293,25.9137,133.38,133.34,9.26]
[1725945257294,22.54,133.38,133.34,9.26]
[1725945257903,3.3737,133.38,133.34,12.6345]
[1725945258498,3.3739,133.37,133.34,12.6345]
[1725945261602,3.3737,133.38,133.35,3.3743]
[1725945261801,22.54,133.39,133.34,9.26]
[1725945262304,3.3739,133.37,133.34,12.6345]
[1725945263307,3.3737,133.38,133.35,3.3743]
[1725945263904,3.3734,133.39,133.36,12.6341]
[1725945264106,3.3734,133.39,133.36,9.26]
[1725945264303,3.3734,133.39,133.37,9.26]
[1725945265209,3.3734,133.39,133.37,12.6338]
[1725945265511,3.3732,133.4,133.37,12.6338]
[1725945266609,3.373,133.41,133.38,12.6336]
[1725945268012,3.66434868,133.45,133.4,12.6329]
[1725945268013,26.20434868,133.45,133.4,12.6329]
[1725945268214,22.54,133.45,133.4,12.6329]
[1725945268910,26.35675667,133.45,133.4,12.6329]
[1725945269106,3.3724,133.43,133.4,12.6329]
[1725945269313,3.3724,133.43,133.35,4.1241]
[1725945269314,22.54,133.42,133.35,4.1241]
[1725945269616,22.54,133.42,133.37,9.26]
[1725945271217,3.373,133.41,133.38,3.3736]
[1725945271413,3.373,133.41,133.37,9.26]
[1725945272008,22.54,133.42,133.37,9.26]
[1725945272009,3.3731,133.4,133.37,12.6337]
[1725945272221,22.54,133.43,133.37,9.26]
[1725945272414,31.8,133.43,133.37,9.26]
[1725945272614,22.54,133.43,133.37,9.26]
[1725945273022,31.8,133.43,133.37,9.26]
[1725945273221,31.8,133.43,133.38,3.3734]
[1725945273222,3.373,133.41,133.38,3.3734]
[1725945273513,31.8,133.43,133.37,9.26]
[1725945273715,31.8,133.43,133.37,12.6337]
[1725945273916,31.8,133.43,133.37,9.26]
[1725945274220,3.373,133.41,133.38,3.3736]
[1725945275122,3.3731,133.4,133.37,12.6337]
[1725945279325,3.3731,133.4,133.38,3.3736]
[1725945279719,3.373,133.41,133.39,9.26]
[1725945282032,3.3731,133.4,133.37,3.3738]
[1725945283334,3.3731,133.4,133.38,9.26]
[1725945284240,3.3731,133.4,133.38,12.6336]
[1725945286535,3.3731,133.4,133.38,9.26]
[1725945289251,3.3731,133.4,133.38,12.6335]
[1725945293253,3.3731,133.4,133.37,12.6338]
[1725945299545,3.3734,133.39,133.37,12.6338]
[1725945300357,3.3732,133.4,133.37,12.6338]
[1725945303458,31.8,133.41,133.35,2.7611]
[1725945303762,31.8,133.41,133.35,12.0211]
[1725945304056,3.3738,133.38,133.35,6.1353]
[1725945304255,31.8,133.39,133.35,2.7611]
[1725945304656,3.3741,133.37,133.35,2.7611]
[1725945304850,22.54,133.39,133.35,12.0211]
[1725945305364,22.54,133.4,133.36,3.3741]
[1725945306966,3.3735,133.39,133.36,3.3741]
[1725945307356,22.54,133.4,133.35,15.3953]
[1725945307958,3.3736,133.38,133.35,15.3953]
[1725945314659,3.3739,133.37,133.35,2.7611]
[1725945315755,3.3738,133.38,133.35,6.1354]
[1725945316159,3.3738,133.38,133.35,15.3954]
[1725945316961,3.3738,133.38,133.36,3.374]
[1725945317264,3.3738,133.38,133.35,12.0211]
[1725945317757,3.3738,133.38,133.35,15.3954]
[1725945317960,3.3739,133.37,133.35,15.3954]
[1725945318665,3.3739,133.37,133.35,12.0211]
[1725945324467,3.3739,133.37,133.35,2.7611]
[1725945326362,3.3741,133.36,133.34,12.6345]
[1725945327874,35.56959824,133.37,133.31,9.26]
[1725945328770,3.3747,133.34,133.31,12.6352]
[1725945329767,3.3749,133.33,133.31,12.6352]
[1725945331273,3.3747,133.34,133.31,12.6352]
[1725945331574,35.56959824,133.37,133.32,3.375]
[1725945331775,3.3745,133.35,133.32,3.375]
[1725945337081,3.3745,133.35,133.32,12.635]
[1725945350591,35.56959824,133.37,133.34,9.26]
[1725945350592,3.3741,133.37,133.34,9.26]
[1725945350793,3.81675667,133.45,133.36,9.26]
[1725945350989,9.26,133.43,133.37,9.26]
[1725945351193,3.3731,133.41,133.37,12.6337]
[1725945351891,3.3731,133.41,133.38,3.3736]
[1725945355202,3.3731,133.41,133.37,9.26]
[1725945355203,3.3732,133.4,133.37,3.3737]
[1725945356204,3.3729,133.41,133.38,3.3734]
[1725945356504,9.26,133.43,133.37,9.26]
[1725945356704,3.3726,133.42,133.39,12.6332]
[1725945356904,9.26,133.44,133.39,9.26]
[1725945357706,31.8,133.44,133.39,9.26]
[1725945358114,3.3727,133.42,133.39,12.6332]
[1725945358707,3.3728,133.41,133.39,9.26]
[1725945360205,3.73649606,133.45,133.38,3.3735]
[1725945360206,9.26,133.43,133.38,3.3735]
[1725945360415,31.8,133.43,133.37,3.3737]
[1725945360808,3.373,133.41,133.38,3.3735]
[1725945361002,9.26,133.43,133.38,9.26]
[1725945361503,3.3728,133.42,133.39,3.3733]
[1725945362007,9.26,133.43,133.38,9.26]
[1725945362512,3.373,133.41,133.38,12.6335]
[1725945367413,3.373,133.41,133.39,3.3733]
[1725945367615,3.73649606,133.45,133.39,9.26]
[1725945367804,153.99528605,133.47,133.41,3.3728]
[1725945368005,1.13939787,133.46,133.41,3.3728]
[1725945368209,3.3722,133.44,133.41,3.3728]
[1725945368716,3.68746718,133.45,133.41,3.3728]
[1725945370225,3.3721,133.44,133.41,3.3728]
[1725945373318,3.372,133.45,133.4,9.26]
[1725945373916,3.372,133.45,133.42,3.3725]
[1725945375619,176.53528605,133.47,133.42,3.3725]
[1725945375817,1.13927031,133.46,133.42,3.3725]
[1725945376018,185.79528605,133.47,133.42,3.3725]
[1725945376213,3.372,133.45,133.42,3.3725]
[1725945377816,3.3721,133.44,133.41,3.3728]
[1725945385130,3.3721,133.44,133.42,3.3726]
[1725945390928,3.70725854,133.48,133.42,12.6326]
[1725945390929,3.3719,133.45,133.42,12.6326]
[1725945396143,3.3719,133.45,133.43,3.3723]
[1725945396333,3.3712,133.48,133.42,9.26]
[1725945396538,22.54,133.5,133.45,3.3716]
[1725945396838,3.3712,133.48,133.45,3.3716]
[1725945397141,3.3712,133.48,133.43,15.57086064]
[1725945397525,3.3712,133.48,133.45,3.3718]
[1725945401536,35.6384823,133.5,133.44,3.3719]
[1725945401537,3.3714,133.47,133.44,3.3719]
[1725945401740,3.3714,133.47,133.44,12.6319]
[1725945402340,3.3714,133.47,133.45,3.3718]
[1725945402542,3.3712,133.48,133.45,3.3718]
[1725945403643,3.3713,133.47,133.44,12.632]
[1725945404938,3.3716,133.46,133.44,12.632]
[1725945405340,35.6384823,133.5,133.44,12.632]
[1725945405548,3.3715,133.47,133.44,12.632]
[1725945406742,3.3716,133.46,133.44,12.632]
[1725945407043,3.3716,133.46,133.44,9.26]
[1725945408243,31.8,133.47,133.36,5.12159921]
[1725945408451,31.8,133.47,133.41,9.26]
[1725945408954,31.8,133.47,133.41,12.6327]
[1725945409246,3.3718,133.46,133.42,9.26]
[1725945409946,3.3718,133.46,133.43,3.3722]
[1725945411647,22.54,133.47,133.41,9.26]
[1725945411847,22.54,133.45,133.41,9.26]
[1725945412151,3.3722,133.44,133.41,12.6327]
[1725945412944,22.54,133.45,133.38,2.6073]
[1725945413146,22.54,133.45,133.4,9.26]
[1725945413347,3.3724,133.43,133.4,12.6329]
[1725945417348,13.06379367,133.46,133.38,2.6073]
[1725945417349,3.67052373,133.46,133.41,9.26]
[1725945417550,31.8,133.47,133.41,9.26]
[1725945418252,3.3721,133.44,133.41,12.6327]
[1725945419845,3.3721,133.44,133.42,3.3726]
[1725945421856,3.3721,133.44,133.41,12.6327]
[1725945424155,3.372,133.45,133.42,3.3724]
[1725945427858,3.3723,133.44,133.41,12.6327]
[1725945428055,3.3723,133.44,133.41,3.3727]
[1725945428356,3.3723,133.44,133.39,9.26]
[1725945428554,3.3723,133.44,133.38,2.6073]
[1725945428749,26.27125551,133.47,133.4,9.26]
[1725945428955,35.53125551,133.47,133.41,9.26]
[1725945429957,3.372,133.45,133.42,3.3723]
[1725945430455,31.8,133.47,133.41,9.26]
[1725945431054,3.3717,133.46,133.43,3.3722]
[1725945431655,9.26,133.47,133.44,3.372]
[1725945431656,12.6314,133.47,133.44,3.372]
[1725945431858,3.3714,133.47,133.44,3.372]
[1725945433063,3.3714,133.47,133.44,12.632]
[1725945433260,31.8,133.5,133.44,9.26]
[1725945434166,22.54,133.5,133.44,9.26]
[1725945434465,22.54,133.5,133.43,3.73425461]
[1725945434466,22.5,133.58,133.43,3.73425461]
[1725945434673,22.5,133.52,133.47,9.26]
[1725945435061,3.3705,133.51,133.47,12.6311]
[1725945435270,9.26,133.5,133.44,4.0107]
[1725945435575,26.26883654,133.52,133.44,4.0107]
[1725945435576,3.3714,133.47,133.44,4.0107]
[1725945436481,3.3714,133.47,133.44,2.6238]
[1725945436668,3.69049092,133.5,133.41,3.3727]
[1725945436669,31.76,133.46,133.41,3.3727]
[1725945436975,22.5,133.46,133.41,9.26]
[1725945437375,3.3717,133.46,133.42,3.3724]
[1725945438170,3.3717,133.46,133.43,12.6323]
[1725945438364,3.3714,133.47,133.43,12.6323]
[1725945438970,3.3716,133.46,133.43,9.26]
[1725945441167,3.3715,133.47,133.43,12.6322]
[1725945441672,22.5,133.48,133.43,12.6322]
[1725945441976,3.3718,133.46,133.43,9.26]
[1725945442374,3.3719,133.45,133.43,9.26]
[1725945442571,3.3719,133.45,133.42,3.3725]
[1725945443579,3.3716,133.46,133.42,3.3725]
[1725945445172,3.3714,133.47,133.42,9.26]
[1725945445670,3.3714,133.47,133.43,3.3721]
[1725945446370,3.3714,133.47,133.43,7.19801093]
[1725945447173,3.3712,133.48,133.44,9.26]
[1725945447380,3.3712,133.48,133.44,11.9704]
[1725945447983,3.3712,133.48,133.44,15.69275397]
[1725945448186,3.3712,133.48,133.45,3.3717]
[1725945449088,3.371,133.49,133.46,3.3716]
[1725945449889,3.3711,133.48,133.45,3.3718]
[1725945450571,3.3709,133.49,133.46,3.3715]
[1725945450971,25.8708,133.5,133.46,3.3715]
[1725945451578,22.5,133.5,133.46,3.3715]
[1725945451978,3.70211156,133.51,133.46,3.3715]
[1725945452174,22.5,133.5,133.46,3.3715]
[1725945453176,3.3708,133.49,133.46,3.3715]
[1725945454885,3.3707,133.5,133.46,3.3715]
[1725945455080,3.3707,133.5,133.47,3.3713]
[1725945460688,3.3709,133.49,133.46,3.3714]
[1725945463389,3.3711,133.48,133.46,3.3714]
[1725945464294,3.3709,133.49,133.46,3.3714]
[1725945467088,3.3708,133.5,133.45,10.5926]
[1725945468092,3.3708,133.5,133.47,3.3713]
[1725945468592,35.49922577,133.52,133.48,3.3709]
[1725945468593,3.3704,133.51,133.48,3.3709]
[1725945468798,9.26,133.52,133.47,9.26]
[1725945468988,3.3708,133.5,133.47,9.26]
[1725945469189,9.26,133.52,133.47,12.6313]
[1725945469485,3.3708,133.5,133.47,12.6313]
[1725945471108,3.3704,133.51,133.48,3.3709]
[1725945471400,12.98086316,133.54,133.48,9.26]
[1725945471598,31.76,133.54,133.48,9.26]
[1725945471803,3.3705,133.51,133.48,12.631]
[1725945472002,35.52920553,133.54,133.48,12.631]
[1725945472303,3.3704,133.51,133.48,12.631]
[1725945473395,3.3702,133.52,133.49,3.3707]
[1725945473598,9.26,133.54,133.49,3.3707]
[1725945473798,3.3701,133.53,133.49,3.3707]
[1725945474703,35.59225903,133.55,133.5,3.3704]
[1725945474998,1.13833039,133.54,133.5,3.3704]
[1725945475198,35.59225903,133.55,133.5,3.3704]
[1725945475399,1.13832228,133.54,133.5,3.3704]
[1725945475702,3.37,133.53,133.49,12.6307]
[1725945476590,3.37,133.53,133.5,3.3706]
[1725945478591,9.26,133.54,133.45,1.3326]
[1725945478803,9.26,133.52,133.46,9.26]
[1725945481201,9.26,133.52,133.47,3.3713]
[1725945481202,3.3706,133.5,133.47,3.3713]
[1725945481811,3.3706,133.5,133.47,12.6313]
[1725945482205,3.3706,133.5,133.45,1.3326]
[1725945482206,3.3706,133.5,133.46,12.6315]
[1725945482399,9.26,133.52,133.46,12.6315]
[1725945482400,31.76,133.52,133.46,12.6315]
[1725945482600,31.76,133.52,133.47,3.3713]
[1725945483006,140.26938926,133.56,133.47,9.26]
[1725945483215,140.26938926,133.56,133.49,9.26]
[1725945483216,10.39847628,133.55,133.49,9.26]
[1725945483511,1.13836277,133.54,133.49,9.26]
[1725945483710,9.26,133.55,133.49,9.26]
[1725945484011,3.37,133.53,133.49,12.6307]
[1725945487914,3.37,133.53,133.5,3.3705]
[1725945488217,3.3701,133.52,133.48,11.8778]
[1725945488516,9.26,133.55,133.48,11.8778]
[1725945488712,3.37,133.53,133.5,3.3706]
[1725945489026,3.37,133.53,133.48,11.8778]
[1725945489027,9.26,133.55,133.48,11.8778]
[1725945489619,123.27264466,133.56,133.49,9.26]
[1725945489822,1.13832911,133.55,133.49,9.26]
[1725945490118,123.27264466,133.56,133.49,9.26]
[1725945490714,3.3697,133.54,133.51,3.3702]
[1725945492322,123.27264466,133.56,133.52,3.37]
[1725945492323,3.3695,133.55,133.52,3.37]
[1725945492618,123.27264466,133.56,133.52,3.37]
[1725945493307,126.64184466,133.56,133.52,3.37]
[1725945493912,123.27264466,133.56,133.52,3.37]
[1725945494813,126.64174466,133.56,133.53,3.3698]
[1725945495116,3.3691,133.56,133.53,3.3698]
[1725945496311,26.16687478,133.64,133.54,9.26]
[1725945496515,31.76,133.61,133.54,9.26]
[1725945496719,1.13789964,133.6,133.54,9.26]
[1725945496910,3.3686,133.58,133.55,3.3693]
[1725945497312,3.3684,133.59,133.55,3.3693]
[1725945498514,3.3686,133.58,133.54,3.3694]
[1725945498716,9.26,133.6,133.54,12.6294]
[1725945499019,1.13780326,133.59,133.54,12.6294]
[1725945499217,3.3688,133.57,133.54,12.6294]
[1725945499813,31.76,133.6,133.54,9.26]
[1725945500014,4.96361482,133.59,133.54,9.26]
[1725945500223,1.13777213,133.58,133.54,9.26]
[1725945501312,3.3692,133.56,133.54,9.26]
[1725945502021,3.3693,133.55,133.52,15.2172]
[1725945502224,9.26,133.58,133.52,11.8472]
[1725945502514,3.3688,133.57,133.53,3.3698]
[1725945502713,9.26,133.58,133.53,3.3698]
[1725945503311,3.3689,133.57,133.53,3.3698]
[1725945503711,9.26,133.58,133.53,3.3698]
[1725945505110,3.3691,133.56,133.53,3.3698]
[1725945505818,3.71216661,133.59,133.55,9.26]
[1725945506015,22.5,133.6,133.55,9.26]
[1725945506222,3.3687,133.58,133.55,9.26]
[1725945507119,3.369,133.57,133.53,9.26]
[1725945507420,22.5,133.6,133.53,9.26]
[1725945507627,22.5,133.6,133.55,3.3691]
[1725945507628,3.3684,133.59,133.55,3.3691]
[1725945507808,120.66698085,133.67,133.58,9.26]
[1725945508013,9.26,133.64,133.58,9.26]
[1725945508215,27.4383943,133.63,133.58,9.26]
[1725945508514,26.30094396,133.63,133.58,9.26]
[1725945508918,3.3678,133.62,133.58,12.6284]
[1725945509222,22.5,133.64,133.58,9.26]
[1725945509420,27.35223189,133.63,133.58,9.26]
[1725945509615,9.26,133.65,133.58,9.26]
[1725945509812,3.3675,133.63,133.59,3.3681]
[1725945510015,3.82750816,133.64,133.59,3.3681]
[1725945510417,26.32750816,133.64,133.59,3.3681]
[1725945511122,3.3676,133.62,133.59,3.3681]
[1725945512511,26.32750816,133.64,133.58,9.26]
[1725945512719,1.1374304,133.63,133.58,12.6284]
[1725945513722,26.32750816,133.64,133.59,3.3682]
[1725945513929,22.5,133.64,133.59,3.3682]
[1725945514123,1.13746094,133.63,133.58,9.26]
[1725945514326,3.3678,133.62,133.58,12.6284]
[1725945515028,3.3678,133.62,133.59,3.3683]
[1725945518532,3.368,133.6,133.57,3.3687]
[1725945518731,3.368,133.6,133.57,12.6287]
[1725945519927,26.27883118,133.64,133.58,9.26]
[1725945520132,26.27883118,133.64,133.58,12.99052864]
[1725945520133,1.13748386,133.63,133.58,12.99052864]
[1725945520626,3.3677,133.62,133.59,3.3683]
[1725945523633,3.3679,133.61,133.58,16.35892864]
[1725945524637,35.42912076,133.64,133.58,12.99052864]
[1725945524638,3.66912076,133.64,133.58,12.99052864]
[1725945524930,31.76,133.65,133.6,9.26]
[1725945525136,1.13735675,133.64,133.6,9.26]
[1725945525827,4.50455675,133.64,133.61,3.3677]
[1725945526028,31.76,133.66,133.61,9.26]
[1725945526223,1.13732462,133.65,133.61,9.26]
[1725945526629,35.48865645,133.66,133.61,9.26]
[1725945526832,1.13733027,133.65,133.61,9.26]
[1725945527131,3.3671,133.64,133.61,12.6277]
[1725945530331,26.22865645,133.66,133.6,12.628]
[1725945530332,3.3673,133.63,133.6,12.628]
[1725945531836,31.76,133.66,133.61,3.3677]
[1725945531837,3.3672,133.64,133.61,3.3677]
[1725945536745,31.76,133.63,133.52,6.7397]
[1725945536938,31.76,133.63,133.56,9.26]
[1725945537138,3.3682,133.6,133.56,12.6288]
[1725945537340,3.3682,133.6,133.56,13.0140247]
[1725945537746,22.5,133.63,133.58,9.26]
[1725945538045,22.5,133.63,133.57,9.26]
[1725945538234,3.368,133.6,133.57,12.6287]
[1725945538439,3.368,133.6,133.57,9.26]
[1725945538841,3.368,133.6,133.57,12.6288]
[1725945544650,31.76,133.62,133.58,3.3685]
[1725945545349,3.3678,133.61,133.58,3.3685]
[1725945547456,22.5,133.65,133.6,9.26]
[1725945547658,22.5,133.65,133.61,9.26]
[1725945548450,3.3671,133.64,133.61,12.6277]
[1725945548753,22.5,133.65,133.61,9.26]
[1725945549746,25.8668,133.65,133.61,12.6277]
[1725945552648,25.8668,133.65,133.62,3.3675]
[1725945553054,3.3668,133.65,133.62,3.3675]
[1725945556658,3.3671,133.64,133.61,12.6277]
[1725945560060,3.3671,133.64,133.6,3.75411799]
[1725945560061,3.3674,133.63,133.6,16.38211799]
[1725945560261,3.3674,133.63,133.6,12.628]
[1725945560862,3.3674,133.63,133.6,16.373882]
[1725945561966,3.3674,133.63,133.6,12.628]
[1725945566265,35.53620215,133.66,133.61,3.3677]
[1725945566266,3.3672,133.64,133.61,3.3677]
[1725945567074,3.3673,133.63,133.61,3.3677]
[1725945570170,3.3673,133.63,133.6,12.6279]
[1725945570372,3.3676,133.62,133.53,7.83154466]
[1725945570570,3.3676,133.62,133.58,9.26]
[1725945570767,31.76,133.64,133.58,9.26]
[1725945571081,3.3678,133.61,133.58,9.26]
[1725945571272,31.76,133.64,133.58,9.26]
[1725945571469,31.76,133.64,133.59,3.3682]
[1725945572180,3.3677,133.62,133.59,3.3682]
[1725945573673,9.26,133.62,133.53,7.83154466]
[1725945573868,22.5,133.61,133.56,9.26]
[1725945574268,25.868,133.61,133.57,12.6286]
[1725945574770,3.368,133.61,133.57,9.26]
[1725945574973,22.5,133.62,133.53,7.83154466]
[1725945574974,25.8677,133.62,133.58,9.26]
[1725945575585,3.3673,133.63,133.6,3.368]
[1725945575774,31.76,133.65,133.58,9.26]
[1725945576079,3.3674,133.63,133.6,3.368]
[1725945576275,3.3674,133.63,133.58,9.26]
[1725945578074,3.3674,133.63,133.59,3.3681]
[1725945578771,3.3676,133.62,133.59,3.3681]
[1725945579885,3.3676,133.62,133.58,12.6285]
[1725945580186,3.3679,133.61,133.58,12.6285]
[1725945581084,3.3681,133.6,133.57,12.6287]
[1725945582878,3.3681,133.6,133.58,3.3685]
[1725945583279,9.26,133.63,133.53,7.83154466]
[1725945583485,3.77620215,133.66,133.56,3.3689]
[1725945583486,31.76,133.62,133.56,3.3689]
[1725945584384,3.368,133.61,133.57,9.26]
[1725945584778,3.368,133.61,133.53,7.83154466]
[1725945584779,22.5,133.6,133.55,9.26]
[1725945584977,3.3684,133.59,133.56,3.3688]
[1725945585182,22.5,133.6,133.55,9.26]
[1725945585881,3.3682,133.6,133.57,3.3688]
[1725945589881,3.3682,133.6,133.57,4.6975]
[1725945590082,3.3682,133.6,133.58,3.3685]
[1725945594688,3.3682,133.6,133.57,1.3287]
[1725945594689,3.3683,133.59,133.57,3.3687]
[1725945595290,3.3682,133.6,133.57,3.3687]
[1725945595485,22.5,133.61,133.56,3.3689]
[1725945595989,3.3685,133.59,133.56,3.3689]
[1725945596591,3.3682,133.6,133.57,3.3687]
[1725945600195,3.3682,133.6,133.58,3.3685]
[1725945601101,3.3679,133.61,133.58,3.3685]
[1725945601297,22.5,133.62,133.59,3.3681]
[1725945601506,22.5,133.64,133.59,3.3681]
[1725945601797,3.3674,133.63,133.59,3.3681]
[1725945602596,3.3674,133.63,133.6,3.368]
[1725945607505,25.867,133.65,133.61,3.3677]
[1725945608108,25.867,133.65,133.62,3.3675]
[1725945610605,22.5,133.65,133.54,1.3133]
[1725945610806,13.03620215,133.66,133.58,9.26]
[1725945610807,22.5,133.63,133.58,9.26]
[1725945611407,22.5,133.63,133.6,3.368]
[1725945611797,22.5,133.64,133.6,3.368]
[1725945611998,3.3674,133.63,133.6,3.368]
[1725945617211,25.8674,133.63,133.6,3.368]
[1725945620712,22.5,133.63,133.6,3.368]
[1725945621908,25.8674,133.63,133.6,3.368]
[1725945622108,22.5,133.62,133.53,5.13254466]
[1725945622314,31.76,133.62,133.55,9.26]
[1725945622508,3.3681,133.6,133.55,9.26]
[1725945622709,3.3681,133.6,133.57,3.3687]
[1725945624212,22.5,133.62,133.56,9.26]
[1725945625112,3.3678,133.61,133.58,3.3684]
[1725945625316,3.3678,133.61,133.54,2.6243]
[1725945625317,22.5,133.62,133.54,2.6243]
[1725945625607,3.3683,133.59,133.55,9.26]
[1725945625811,22.5,133.61,133.54,2.6205]
[1725945626011,22.5,133.59,133.54,15.68713521]
[1725945626212,22.5,133.59,133.54,11.8805]
[1725945626609,22.5,133.59,133.57,3.3688]
[1725945626811,22.5,133.59,133.56,9.26]
[1725945627114,25.868,133.61,133.57,3.3686]
[1725945627714,29.51998831,133.61,133.57,3.3686]
[1725945629222,29.51998831,133.61,133.58,3.3685]
[1725945630411,29.51998831,133.61,133.59,3.3683]
[1725945630412,22.5,133.61,133.59,3.3683]
[1725945641419,25.8679,133.61,133.58,3.3685]
[1725945643115,3.3681,133.6,133.58,3.3685]
[1725945643315,22.5,133.61,133.58,3.3685]
[1725945643515,22.5,133.61,133.59,3.3681]
[1725945644712,25.8674,133.63,133.6,3.368]
[1725945644919,29.650445,133.63,133.6,3.368]
[1725945646222,22.5,133.63,133.61,3.3678]
[1725945649624,25.8673,133.63,133.6,3.3679]
[1725945649818,3.3673,133.63,133.6,3.3679]
[1725945650018,22.5,133.63,133.58,12.98088669]
[1725945650219,22.5,133.63,133.61,3.3678]
[1725945652327,113.90080863,133.69,133.59,9.26]
[1725945652328,25.8669,133.65,133.59,9.26]
[1725945652629,25.8669,133.65,133.6,1.2849]
[1725945652823,25.8669,133.65,133.61,3.3677]
[1725945653228,29.65415475,133.65,133.61,3.3677]
[1725945653433,29.65405475,133.65,133.62,3.3674]
[1725945653630,38.91405475,133.65,133.62,3.3674]
[1725945654135,3.3671,133.64,133.61,3.3677]
[1725945655933,29.65425475,133.65,133.61,3.3677]
[1725945656126,38.91425475,133.65,133.61,3.3677]
[1725945657636,3.3668,133.66,133.62,3.3674]
[1725945657831,22.5,133.65,133.62,3.3674]
[1725945658530,25.8668,133.65,133.62,3.3674]
[1725945659536,25.8668,133.65,133.63,3.3673]
[1725945659728,25.8668,133.65,133.6,1.2849]
[1725945659928,25.8668,133.65,133.62,3.3673]
[1725945661336,25.8668,133.65,133.63,3.3673]
[1725945661737,3.367,133.64,133.6,1.2849]
[1725945661933,22.5,133.65,133.62,3.3675]
[1725945662134,26.18299494,133.65,133.6,5.0846847]
[1725945662443,29.54989494,133.65,133.6,5.0846847]
[1725945662740,29.54989494,133.65,133.61,3.3677]
[1725945664239,3.3671,133.64,133.61,3.3677]
[1725945665538,3.3671,133.64,133.62,3.3675]
[1725945665837,25.8669,133.65,133.62,3.3675]
[1725945674845,3.3669,133.65,133.62,3.3675]